{"text_format":"1","workbook":"xlsx","n_sheets":7,"sheets":["表紙","学生カード","自己採点シート","学習自己点検シート ","単位修得状況確認表（共通教育科目等）","単位修得状況確認表（専門教育科目）","累積グラフ"],"not_rendered":{"charts":10,"images":2,"macros":1,"external_links":0,"defined_names":5,"comments":0,"pivot_tables":0},"unopened":[],"bounds":{"document_bytes":16777216,"sheet_cells":100000,"rows_first":2000,"rows_last":500,"rows_between":2000,"halvings":0,"cell_chars":16384,"cell_head_chars":4096},"cells_cut":0,"cells_raw":0,"read":"whole","date_system":"1900"}

{"sheet":"表紙","index":0,"n_rows":34,"n_cols":2,"rows_kept":34,"cut":false,"hidden":false,"merged":[]}
[]
[]
[]
[]
[]
[]
[]
[]
[]
[]
[]
[null,"鹿児島大学工学部ポートフォリオ"]
[]
[]
[]
[]
[]
[]
[]
[]
[]
[]
[]
[]
[]
[]
[]
[]
[]
[]
[]
[null,"学科："]
[null,"氏名："]
[null,"学籍番号："]

{"sheet":"学生カード","index":1,"n_rows":62,"n_cols":10,"rows_kept":62,"cut":false,"hidden":false,"merged":[[9,0,16,0],[9,8,24,9],[14,5,14,7],[15,5,15,7],[17,0,24,0],[0,0,0,9],[3,0,3,1],[3,8,3,9],[4,6,8,6],[7,1,7,5],[31,0,42,0],[31,8,34,9],[40,6,40,9],[41,6,41,9],[22,5,22,7],[23,5,23,7],[25,0,30,0],[25,1,26,1],[25,2,26,2],[25,3,26,3],[25,4,26,7],[25,8,25,9],[26,8,26,9],[29,1,30,1],[29,2,30,2],[29,3,30,3],[43,0,54,0],[43,8,46,9],[52,6,52,9],[53,6,53,9],[55,0,55,9]]}
["学 生 カ ー ド"]
[]
["平成　　年度入学",null,null,null,null,null,null,null,null,"鹿児島大学工学部"]
[null,null,null,"学科","学籍番号",null,null,"指導教員名","㊞"]
[null,null,null,null,null,null,"男\n・\n女","本　籍"]
["ふりがな"]
["氏　　名",null,null,null,null,null,null,null,null,"都・道・府・県"]
["生年月日","昭和・平成 　　年　 　月　 　日生（　　　歳）"]
[null,"※戸籍記載のとおり",null,null,null,null,null,"※外国人は国籍名"]
["現 住 所",null,null,null,null,null,null,null,"写真貼付\n\nたて　５cm\nよこ　４cm"]
[null,"〒","－"]
[]
[]
[]
[null,null,null,null,"TEL","（　　　　　　　　　　　　）"]
[null,null,null,null,"携帯TEL","（　　　　　　　　　　　　）"]
[]
["住所変更"]
[null,"〒","－"]
[]
[]
[]
[null,null,null,null,"TEL","（　　　　　　　　　　　　）"]
[null,null,null,null,"携帯TEL","（　　　　　　　　　　　　）"]
[]
["履　　歴",null,"年","月","都・道・府・県",null,null,null,"　高等学校卒業等"]
[null,null,null,null,null,null,null,null,"　大学検定合格　"]
[null,null,"年","月"]
[null,null,"年","月"]
[null,null,"年","月"]
[]
["保証人\n（保護者）",null,null,null,null,null,null,null," 続柄"]
[null,"ふりがな"]
[null,"氏　名"]
[]
[]
[null,"住 所","〒","－"]
[]
[]
[]
[null,null,null,null,null,"T E L","（                                     )"]
[null,null,null,null,null,"携帯TEL","（                                     )"]
[]
["緊急時の\n連 絡 先\n（保証人\nとは別）",null,null,null,null,null,null,null," 続柄"]
[null,"ふりがな"]
[null,"氏　名"]
[]
[]
[null,"住 所","〒","－"]
[]
[]
[]
[null,null,null,null,null,"T E L","（                                     )"]
[null,null,null,null,null,"携帯TEL","（                                     )"]
[]
["大 学 側 記 入 欄"]
["　　年　　月　　日"]
["　　年　　月　　日"]
["注　１．本学生カードは２部作成し、１部を指導教員へ、もう１部は指導教員の認印を受けて４月１５日までに"]
["　　　　工学部学生係へ提出すること。"]
["　　２．住所を変更したら必ず工学部学生係へ申し出ること。"]
["　　３．本学生カードの記載情報は履修指導や生活指導の目的のみに使用されます。"]

{"sheet":"自己採点シート","index":2,"n_rows":24,"n_cols":21,"rows_kept":24,"cut":false,"hidden":false,"merged":[[16,2,16,5],[11,2,11,5],[12,2,12,5],[13,2,13,5],[14,2,14,5],[15,2,15,5],[23,2,23,5],[17,2,17,5],[18,2,18,5],[19,2,19,5],[20,2,20,5],[21,2,21,5],[22,2,22,5]]}
[]
[]
[null,"自己採点シート"]
[]
[null,null,null,null,null,null,null,"学籍番号",null,"氏名"]
[]
[null,"学生のみなさんへ"]
[null,null,"今期受講した科目に関して、以下の項目に対して自己採点をしてください。(１０点満点)"]
[]
[]
[]
[null,null,"項目",null,null,null,"2015年度\n前期","2015年度\n後期","2016年度\n前期","2016年度\n後期","2017年度\n前期","2017年度\n後期","2018年度\n前期","2018年度\n後期","2018年度\n前期","2018年度\n後期","2019年度\n前期","2019年度\n後期","2020年度\n前期","2020年度\n後期","卒業時"]
[null,1,"工学に関しての基礎知識\n（物理・化学・数学・情報など）"]
[null,2,"各工学分野での基礎知識\n（専門科目など）"]
[null,3,"人前での発表能力"]
[null,4,"人と話し合ったり議論する能力"]
[null,5,"チームの一員として取り組める（チームワーク）能力"]
[null,6,"英語、その他外国語による表現力"]
[null,7,"読書、講習会への参加、英会話や情報処理学習など大学以外での学習による自己啓発・生涯学習能力"]
[null,8,"社会性や国際感覚が身についているか。"]
[null,9,"倫理観、責任感がみについているか。"]
[null,10]
[null,11]
[null,12]

{"sheet":"学習自己点検シート ","index":3,"n_rows":67,"n_cols":12,"rows_kept":67,"cut":false,"hidden":false,"merged":[[7,2,7,12]]}
[]
[]
[null,"学習自己点検シート"]
[]
[null,null,null,null,null,null,null,null,null,"学籍番号",null,"氏名"]
[]
[null,"学生のみなさんへ"]
[null,null,"学生生活全般に関して自己点検をお願いしています。今期受講した科目に関して、以下の質問項目に答えてください。面談時、指導教員の先生方から回答に対する具体的なアドバイスを受けてください。"]
[]
[]
[null,"回答方法"]
[null,1,"今期の目標は達成できましたか。"]
[]
[]
[]
[]
[null,2,"講義への取り組みは積極的でしたか。また、積極的に取り組むことができなかった講義は具体的に何ですか。"]
[]
[]
[]
[]
[null,3,"講義毎に勉強方法がつかめていますか。"]
[]
[]
[]
[]
[null,4,"それぞれの講義の理解度は自分の目標に達していますか。理解度が足りないと感じている講義は何ですか。"]
[]
[]
[]
[]
[null,5,"平日（試験勉強以外）１日当たりの勉強時間（平均）はどのくらいですか。勉強時間が足りないと感じている講義は何ですか。"]
[]
[]
[]
[]
[null,6,"アルバイトと勉強は両立できましたか。"]
[]
[]
[]
[]
[null,7,"サークル活動と勉強は両立できましたか。"]
[]
[]
[]
[]
[null,8,"卒業後の進路についてどのように考えていますか。"]
[]
[]
[]
[]
[null,9,"その他、アドバイスが必要なことはありますか。"]
[]
[]
[]
[]
[null,10]
[]
[]
[]
[]
[null,11]
[]
[]
[]
[]
[null,12]

{"sheet":"単位修得状況確認表（共通教育科目等）","index":4,"n_rows":43,"n_cols":49,"rows_kept":43,"cut":false,"hidden":false,"merged":[[23,45,36,45],[31,46,36,46],[23,46,30,46],[2,0,3,6],[19,39,22,39],[20,7,20,10],[20,11,20,14],[20,15,20,18],[20,19,20,22],[20,23,20,26],[20,27,20,30],[20,31,20,34],[20,35,20,38],[3,23,3,26],[3,27,3,30],[3,31,3,34],[3,35,3,38],[4,23,4,24],[4,25,4,26],[13,5,13,6],[14,5,14,6],[4,33,4,34],[2,7,2,38],[19,7,19,38],[19,40,22,40],[21,7,21,8],[21,9,21,10],[21,11,21,12],[4,7,4,8],[4,9,4,10],[4,11,4,12],[31,1,35,3],[4,35,4,36],[4,37,4,38],[4,27,4,28],[4,29,4,30],[4,31,4,32],[9,4,9,6],[6,1,9,3],[36,1,36,6],[21,33,21,34],[21,13,21,14],[23,1,29,3],[21,19,21,20],[23,4,23,5],[30,1,30,6],[21,27,21,28],[21,29,21,30],[21,23,21,24],[21,25,21,26],[1,0,1,41],[37,0,37,6],[2,40,5,40],[2,41,5,41],[27,4,27,5],[29,4,29,5],[28,4,28,5],[31,4,31,5],[6,0,16,0],[17,0,17,6],[7,4,7,6],[8,4,8,6],[26,4,26,5],[19,0,20,6],[23,0,36,0],[11,4,12,4],[13,4,15,4],[15,5,15,6],[25,4,25,5],[11,1,15,3],[11,5,11,6],[12,5,12,6],[33,4,33,5],[32,4,32,5],[12,43,14,43],[39,0,39,6],[19,41,22,41],[4,13,4,14],[4,15,4,16],[4,17,4,18],[21,4,22,5],[10,1,10,6],[16,1,16,6],[6,4,6,6],[21,15,21,16],[21,17,21,18],[2,39,5,39],[3,7,3,10],[3,11,3,14],[3,15,3,18],[3,19,3,22],[4,19,4,20],[4,21,4,22],[21,21,21,22],[34,4,34,5],[35,4,35,5],[24,4,24,5],[21,31,21,32],[40,39,40,40],[42,0,42,6],[42,7,42,8],[42,9,42,10],[42,11,42,12],[42,13,42,14],[42,15,42,16],[41,19,41,20],[41,21,41,22],[42,17,42,18],[42,19,42,20],[42,21,42,22],[41,0,41,6],[41,7,41,8],[41,9,41,10],[41,11,41,12],[41,13,41,14],[41,15,41,16],[41,17,41,18],[42,35,42,36],[42,37,42,38],[42,23,42,24],[42,25,42,26],[42,27,42,28],[42,29,42,30],[42,31,42,32],[42,33,42,34],[21,35,21,36],[21,37,21,38],[41,23,41,24],[41,25,41,26],[41,27,41,28],[41,29,41,30],[41,31,41,32],[41,33,41,34],[41,35,41,36],[41,37,41,38]]}
[null,null,null,null,null,null,null,null,null,null,null,null,null,null,null,null,null,null,null,null,null,null,null,null,null,null,null,null,null,null,null,null,null,null,null,null,null,null,null,null,null,null,null,null,null,null,null,"A"]
["単位修得状況確認表（共通教育科目等）",null,null,null,null,null,null,null,null,null,null,null,null,null,null,null,null,null,null,null,null,null,null,null,null,null,null,null,null,null,null,null,null,null,null,null,null,null,null,null,null,null,null,null,null,null,null,"B"]
["共通教育科目・人間力養成プログラム",null,null,null,null,null,null,"取得単位数およびGP",null,null,null,null,null,null,null,null,null,null,null,null,null,null,null,null,null,null,null,null,null,null,null,null,null,null,null,null,null,null,null,"取得単位数","要修得\n単位数","累積GP",null,null,null,null,null,"C"]
[null,null,null,null,null,null,null,"　年次",null,null,null,"　年次",null,null,null,"　年次",null,null,null,"　年次",null,null,null,"　年次",null,null,null,"　年次",null,null,null,"　年次",null,null,null,"　年次",null,null,null,null,null,null,null,null,null,null,null,"D"]
[null,null,null,null,null,null,null,"１期",null,"２期",null,"３期",null,"４期",null,"５期",null,"６期",null,"７期",null,"８期",null,"９期",null,"10期",null,"11期",null,"12期",null,"13期",null,"14期",null,"15期",null,"16期",null,null,null,null,null,null,null,null,null,"F"]
[null,null,null,null,null,null,"　","単位","GP","単位","GP","単位","GP","単位","GP","単位","GP","単位","GP","単位","GP","単位","GP","単位","GP","単位","GP","単位","GP","単位","GP","単位","GP","単位","GP","単位","GP","単位","GP",null,null,null,null,null,null,null,null,"P"]
["共通教育科目","選択科目",null,null,"a 実践・判断・精神力",null,null,null,null,null,null,null,null,null,null,null,null,null,null,null,null,null,null,null,null,null,null,null,null,null,null,null,null,null,null,null,null,null,null,{"$f":"SUM(H7,J7,L7,N7,P7,R7,T7,V7,X7,Z7,AB7,AD7,AF7,AH7,AJ7,AL7)","v":0},4,null,null,"１．オレンジ枠に分野ごとの合計単位数を記入する。"]
[null,null,null,null,"b 知力（人文・社会科学）",null,null,null,null,null,null,null,null,null,null,null,null,null,null,null,null,null,null,null,null,null,null,null,null,null,null,null,null,null,null,null,null,null,null,0,6,null,null,"２．各科目の単位数を記入し、合計を計算する。"]
[null,null,null,null,"c 知力（自然科学）",null,null,null,null,null,null,null,null,null,null,null,null,null,null,null,null,null,null,null,null,null,null,null,null,null,null,null,null,null,null,null,null,null,null,0,6,null,null,"３．各科目のGPを記入し、合計を計算する。"]
[null,null,null,null,"うち、地域志向科目（選択必修科目）",null,null,null,null,null,null,null,null,null,null,null,null,null,null,null,null,null,null,null,null,null,null,null,null,null,null,null,null,null,null,null,null,null,null,{"$f":"SUM(H10,J10,L10,N10,P10,R10,T10,V10,X10,Z10,AB10,AD10,AF10,AH10,AJ10,AL10)","v":0},"［2］",null,null,"４．取得単位数を要取得単位数と比較する。"]
[null,"選択科目　計",null,null,null,null,null,null,null,null,null,null,null,null,null,null,null,null,null,null,null,null,null,null,null,null,null,null,null,null,null,null,null,null,null,null,null,null,null,0,16,{"$f":"SUM(I11,K11,M11,O11,Q11,S11,U11,W11,Y11,AA11,AC11,AE11,AG11,AI11,AK11,AM11)","v":0}]
[null,"選択必修\n科目",null,null,"d 身体力","理論",null,null,null,null,null,null,null,null,null,null,null,null,null,null,null,null,null,null,null,null,null,null,null,null,null,null,null,null,null,null,null,null,null,0,1]
[null,null,null,null,null,"実践",null,null,null,null,null,null,null,null,null,null,null,null,null,null,null,null,null,null,null,null,null,null,null,null,null,null,null,null,null,null,null,null,null,0,1,null,null,"※ 工学英語の成績は「第一外国語オープン」欄に記入する。"]
[null,null,null,null,"e コミュニケーション力","情報・通信を学ぶ",null,null,null,null,null,null,null,null,null,null,null,null,null,null,null,null,null,null,null,null,null,null,null,null,null,null,null,null,null,null,null,null,null,0,2]
[null,null,null,null,null,"第一外国語コア",null,null,null,null,null,null,null,null,null,null,null,null,null,null,null,null,null,null,null,null,null,null,null,null,null,null,null,null,null,null,null,null,null,0,4]
[null,null,null,null,null,"第一外国語オープン",null,null,null,null,null,null,null,null,null,null,null,null,null,null,null,null,null,null,null,null,null,null,null,null,null,null,null,null,null,null,null,null,null,0,4]
[null,"選択必修科目　計",null,null,null,null,null,null,null,null,null,null,null,null,null,null,null,null,null,null,null,null,null,null,null,null,null,null,null,null,null,null,null,null,null,null,null,null,null,0,12,{"$f":"SUM(I17,K17,M17,O17,Q17,S17,U17,W17,Y17,AA17,AC17,AE17,AG17,AI17,AK17,AM17)","v":0}]
["合計",null,null,null,null,null,null,null,null,null,null,null,null,null,null,null,null,null,null,null,null,null,null,null,null,null,null,null,null,null,null,null,null,null,null,null,null,null,null,0,28,{"$f":"SUM(I18,K18,M18,O18,Q18,S18,U18,W18,Y18,AA18,AC18,AE18,AG18,AI18,AK18,AM18)","v":0}]
[]
[" 基礎教育科目・専門基礎力養成プログラム",null,null,null,null,null,null,"履修科目の評価およびGP",null,null,null,null,null,null,null,null,null,null,null,null,null,null,null,null,null,null,null,null,null,null,null,null,null,null,null,null,null,null,null,"取得単位数","要修得\n単位数","累積GP"]
[null,null,null,null,null,null,null,"　年次",null,null,null,"　年次",null,null,null,"　年次",null,null,null,"　年次",null,null,null,"　年次",null,null,null,"　年次",null,null,null,"　年次",null,null,null,"　年次"]
[null,null,null,null,"授業科目",null,"単","１期",null,"２期",null,"３期",null,"４期",null,"５期",null,"６期",null,"７期",null,"８期",null,"９期",null,"10期",null,"11期",null,"12期",null,"13期",null,"14期",null,"15期",null,"16期"]
[null,null,null,null,null,null,"位","評価","GP","評価","GP","評価","GP","評価","GP","評価","GP","評価","GP","評価","GP","評価","GP","評価","GP","評価","GP","評価","GP","評価","GP","評価","GP","評価","GP","評価","GP","評価","GP"]
["基礎教育科目","単独必修科目",null,null,"微分積分学ＡⅠ",null,2,null,null,null,null,null,null,null,null,null,null,null,null,null,null,null,null,null,null,null,null,null,null,null,null,null,null,null,null,null,null,null,null,null,null,null,null,"１．黄色枠に各科目の評価を記入する。",null,"基礎教育科目","単独必修科目",589621032101,{"$f":"E24","v":"微分積分学ＡⅠ"}]
[null,null,null,null,"微分積分学ＡⅡ",null,2,null,null,null,null,null,null,null,null,null,null,null,null,null,null,null,null,null,null,null,null,null,null,null,null,null,null,null,null,null,null,null,null,null,null,null,null,"２．オレンジ枠に合計単位数を記入する。",null,null,null,589621032102,{"$f":"E25","v":"微分積分学ＡⅡ"}]
[null,null,null,null,"線形代数学Ⅰ",null,2,null,null,null,null,null,null,null,null,null,null,null,null,null,null,null,null,null,null,null,null,null,null,null,null,null,null,null,null,null,null,null,null,null,null,null,null,"３．各科目のGPを記入し、合計を計算する。",null,null,null,589621032106,"線形代数学Ⅰ"]
[null,null,null,null,"物理学基礎ＡⅠ",null,2,null,null,null,null,null,null,null,null,null,null,null,null,null,null,null,null,null,null,null,null,null,null,null,null,null,null,null,null,null,null,null,null,null,null,null,null,"４．取得単位数を要取得単位数と比較する。",null,null,null,589621033101,"物理学基礎ＡⅠ"]
[null,null,null,null,"物理学基礎ＡⅡ",null,2,null,null,null,null,null,null,null,null,null,null,null,null,null,null,null,null,null,null,null,null,null,null,null,null,null,null,null,null,null,null,null,null,null,null,null,null,null,null,null,null,589621033102,"物理学基礎ＡⅡ"]
[null,null,null,null,"物理学実験Ａ",null,2,null,null,null,null,null,null,null,null,null,null,null,null,null,null,null,null,null,null,null,null,null,null,null,null,null,null,null,null,null,null,null,null,null,null,null,null,null,null,null,null,589621033302,"物理学実験Ａ"]
[null,null,null,null,"化学実験Ａ",null,2,null,null,null,null,null,null,null,null,null,null,null,null,null,null,null,null,null,null,null,null,null,null,null,null,null,null,null,null,null,null,null,null,null,null,null,null,null,null,null,null,589621034302,"化学実験Ａ"]
[null,"単独必修科目　計",null,null,null,null,null,null,null,null,null,null,null,null,null,null,null,null,null,null,null,null,null,null,null,null,null,null,null,null,null,null,null,null,null,null,null,null,null,{"$f":"SUM(H31,J31,L31,N31,P31,R31,T31,V31,X31,Z31,AB31,AD31,AF31,AH31,AJ31,AL31)","v":0},14,{"$f":"SUM(I31,K31,M31,O31,Q31,S31,U31,W31,Y31,AA31,AC31,AE31,AG31,AI31,AK31,AM31)","v":0}]
[null,"選択必修科目",null,null,"線形代数学Ⅱ",null,2,null,null,null,null,null,null,null,null,null,null,null,null,null,null,null,null,null,null,null,null,null,null,null,null,null,null,null,null,null,null,null,null,null,null,null,null,null,null,null,"選択必修科目",589621032107,"線形代数学Ⅱ"]
[null,null,null,null,"統計学Ⅰ",null,2,null,null,null,null,null,null,null,null,null,null,null,null,null,null,null,null,null,null,null,null,null,null,null,null,null,null,null,null,null,null,null,null,null,null,null,null,null,null,null,null,589621031101,"統計学Ⅰ"]
[null,null,null,null,"生態学基礎",null,2,null,null,null,null,null,null,null,null,null,null,null,null,null,null,null,null,null,null,null,null,null,null,null,null,null,null,null,null,null,null,null,null,null,null,null,null,null,null,null,null,589621035101,"生態学基礎"]
[null,null,null,null,"生命科学実験B",null,1,null,null,null,null,null,null,null,null,null,null,null,null,null,null,null,null,null,null,null,null,null,null,null,null,null,null,null,null,null,null,null,null,null,null,null,null,null,null,null,null,589621035303,"生命科学実験B"]
[null,null,null,null,"地学実験B",null,1,null,null,null,null,null,null,null,null,null,null,null,null,null,null,null,null,null,null,null,null,null,null,null,null,null,null,null,null,null,null,null,null,null,null,null,null,null,null,null,null,589621036303,"地学実験B"]
[null,"選択必修科目　計",null,null,null,null,null,null,null,null,null,null,null,null,null,null,null,null,null,null,null,null,null,null,null,null,null,null,null,null,null,null,null,null,null,null,null,null,null,{"$f":"SUM(H37,J37,L37,N37,P37,R37,T37,V37,X37,Z37,AB37,AD37,AF37,AH37,AJ37,AL37)","v":0},2,{"$f":"SUM(I37,K37,M37,O37,Q37,S37,U37,W37,Y37,AA37,AC37,AE37,AG37,AI37,AK37,AM37)","v":0}]
["合計",null,null,null,null,null,null,null,null,null,null,null,null,null,null,null,null,null,null,null,null,null,null,null,null,null,null,null,null,null,null,null,null,null,null,null,null,null,null,{"$f":"SUM(H38,J38,L38,N38,P38,R38,T38,V38,X38,Z38,AB38,AD38,AF38,AH38,AJ38,AL38)","v":0},16,{"$f":"SUM(I38,K38,M38,O38,Q38,S38,U38,W38,Y38,AA38,AC38,AE38,AG38,AI38,AK38,AM38)","v":0}]
[]
["共通教育科目等合計",null,null,null,null,null,null,{"$f":"SUM(H18,H38)","v":0},0,0,0,0,0,0,0,0,0,0,0,0,0,0,0,0,0,0,0,0,0,0,0,0,0,0,0,0,0,0,0,{"$f":"SUM(H40,J40,L40,N40,P40,R40,T40,V40,X40,Z40,AB40,AD40,AF40,AH40,AJ40,AL40)","v":0},44,{"$f":"SUM(I40,K40,M40,O40,Q40,S40,U40,W40,Y40,AA40,AC40,AE40,AG40,AI40,AK40,AM40)","v":0}]
[]
["【共通教育科目等】評価Pの単位数",null,null,null,null,null,null,null,null,null,null,null,null,null,null,null,null,null,null,null,null,null,null,null,null,null,null,null,null,null,null,null,null,null,null,null,null,null,null,{"$f":"SUM(H42:AM42)","v":0}]
["【共通教育科目等】不合格（評価F）の単位数",null,null,null,null,null,null,null,null,null,null,null,null,null,null,null,null,null,null,null,null,null,null,null,null,null,null,null,null,null,null,null,null,null,null,null,null,null,null,{"$f":"SUM(H43:AM43)","v":0}]

{"sheet":"単位修得状況確認表（専門教育科目）","index":5,"n_rows":66,"n_cols":51,"rows_kept":66,"cut":false,"hidden":false,"merged":[[28,46,35,46],[38,46,47,46],[50,46,58,46],[6,46,20,46],[23,46,25,46],[1,0,1,41],[2,0,5,0],[2,1,5,1],[2,39,5,39],[3,7,3,10],[3,11,3,14],[3,15,3,18],[4,9,4,10],[4,11,4,12],[4,13,4,14],[2,41,5,41],[3,19,3,22],[4,25,4,26],[4,31,4,32],[4,33,4,34],[2,2,5,2],[4,15,4,16],[4,17,4,18],[4,19,4,20],[2,40,5,40],[4,21,4,22],[3,23,3,26],[4,35,4,36],[2,7,2,38],[4,37,4,38],[3,27,3,30],[4,27,4,28],[4,29,4,30],[3,31,3,34],[3,35,3,38],[4,23,4,24],[4,7,4,8],[64,15,64,16],[64,17,64,18],[8,43,10,43],[21,0,21,6],[23,0,25,0],[6,0,20,0],[6,1,20,1],[13,43,15,43],[16,43,19,43],[15,6,20,6],[23,1,25,1],[63,39,63,40],[26,0,26,6],[28,0,35,0],[28,1,35,1],[36,0,36,6],[65,21,65,22],[65,0,65,6],[65,7,65,8],[65,9,65,10],[65,11,65,12],[65,13,65,14],[65,15,65,16],[65,17,65,18],[65,19,65,20],[64,33,64,34],[38,0,47,0],[38,1,47,1],[64,0,64,6],[64,19,64,20],[59,0,59,6],[50,0,58,0],[50,1,58,1],[48,0,48,6],[64,21,64,22],[61,0,61,6],[62,0,62,6],[64,7,64,8],[64,9,64,10],[64,11,64,12],[64,13,64,14],[40,50,41,50],[64,35,64,36],[64,37,64,38],[65,23,65,24],[65,25,65,26],[65,27,65,28],[65,29,65,30],[65,31,65,32],[65,33,65,34],[65,35,65,36],[65,37,65,38],[64,23,64,24],[64,25,64,26],[64,27,64,28],[64,29,64,30],[64,31,64,32]]}
[null,null,null,null,null,null,null,null,null,null,null,null,null,null,null,null,null,null,null,null,null,null,null,null,null,null,null,null,null,null,null,null,null,null,null,null,null,null,null,null,null,null,null,null,null,null,null,"A"]
["単位修得状況確認表（専門教育科目）",null,null,null,null,null,null,null,null,null,null,null,null,null,null,null,null,null,null,null,null,null,null,null,null,null,null,null,null,null,null,null,null,null,null,null,null,null,null,null,null,null,null,"１．黄色枠に各科目の評価を記入する。",null,null,null,"B"]
["科目群","区分","必修科目","専","授","単","担","履修科目の評価およびGP",null,null,null,null,null,null,null,null,null,null,null,null,null,null,null,null,null,null,null,null,null,null,null,null,null,null,null,null,null,null,null,"取得単位数","要修得\n単位数","累積GP",null,"２．オレンジ枠に合計単位数を記入する。",null,null,null,"C"]
[null,null,null," ","業"," ","当","　年次",null,null,null,"　年次",null,null,null,"　年次",null,null,null,"　年次",null,null,null,"　年次",null,null,null,"　年次",null,null,null,"　年次",null,null,null,"　年次",null,null,null,null,null,null,null,"３．各科目のGPを記入し、合計を計算する。",null,null,null,"D"]
[null,null,null,null,"科",null,"教","１期",null,"２期",null,"３期",null,"４期",null,"５期",null,"６期",null,"７期",null,"８期",null,"９期",null,"10期",null,"11期",null,"12期",null,"13期",null,"14期",null,"15期",null,"16期",null,null,null,null,null,"４．取得単位数を要取得単位数と比較する。",null,null,null,"F"]
[null,null,null,"門","目","位","員","評価","GP","評価","GP","評価","GP","評価","GP","評価","GP","評価","GP","評価","GP","評価","GP","評価","GP","評価","GP","評価","GP","評価","GP","評価","GP","評価","GP","評価","GP","評価","GP",null,null,null,null,null,null,null,null,"P"]
["必修科目","工学基礎","○","○","フレッシュマンセミナー",2,"平田、甲斐、吉田、鮫島、中里、武井、二井",null,null,null,null,null,null,null,null,null,null,null,null,null,null,null,null,null,null,null,null,null,null,null,null,null,null,null,null,null,null,null,null,null,null,null,null,null,null,null,"工学基礎",250152511101,{"$f":"E7","v":"フレッシュマンセミナー"}]
[null,null,"○"," ","工学倫理",2,"小波*",null,null,null,null,null,null,null,null,null,null,null,null,null,null,null,null,null,null,null,null,null,null,null,null,null,null,null,null,null,null,null,null,null,null,null,null,null,null,null,null,250222000101,{"$f":"E8","v":"工学倫理"}]
[null,null,"○","○","応用数学Ⅰ",2,"江崎*",null,null,null,null,null,null,null,null,null,null,null,null,null,null,null,null,null,null,null,null,null,null,null,null,null,null,null,null,null,null,null,null,null,null,null,null,"※ 期をまたがって開講される科目は、成績の\n　出された期に記入する。例えば通年の場合\n　後期に記入する。",null,null,null,250092800004,"応用数学Ⅰ"]
[null,null,"○",null,"化学工学プログラミング",2,"二井、水田",null,null,null,null,null,null,null,null,null,null,null,null,null,null,null,null,null,null,null,null,null,null,null,null,null,null,null,null,null,null,null,null,null,null,null,null,null,null,null,null,251328000008,"化学工学プログラミング"]
[null,null,null,"○","情報システム",2,"水野ほか",null,null,null,null,null,null,null,null,null,null,null,null,null,null,null,null,null,null,null,null,null,null,null,null,null,null,null,null,null,null,null,null,null,null,null,null,null,null,null,null,250092800006,"情報システム"]
[null,null,null," ","応用数学Ⅱ",2,"中里",null,null,null,null,null,null,null,null,null,null,null,null,null,null,null,null,null,null,null,null,null,null,null,null,null,null,null,null,null,null,null,null,null,null,null,null,null,null,null,null,250092800005,"応用数学Ⅱ"]
[null,null,null,null,"化学基礎",2,"全教員",null,null,null,null,null,null,null,null,null,null,null,null,null,null,null,null,null,null,null,null,null,null,null,null,null,null,null,null,null,null,null,null,null,null,null,null,null,null,null,null,null,"化学基礎"]
[null,null,null,null,"原子力・放射線と環境",2,"佐藤(紘)*",null,null,null,null,null,null,null,null,null,null,null,null,null,null,null,null,null,null,null,null,null,null,null,null,null,null,null,null,null,null,null,null,null,null,null,null,"※ 随意科目については、GPおよびGPAの計算に\n　含めない。また、進級・卒業要件には含まれない。",null,null,null,250042099101,"原子力・放射線と環境"]
[null,null,null,"○","地球科学基礎",2,"浅野*、山城*、三隅*",null,null,null,null,null,null,null,null,null,null,null,null,null,null,null,null,null,null,null,null,null,null,null,null,null,null,null,null,null,null,null,null,null,null,null,null,null,null,null,null,250299110001,"地球科学基礎"]
[null,null,null," ","生産工学論",2,"全学科共通\n別表３を参照",null,null,null,null,null,null,null,null,null,null,null,null,null,null,null,null,null,null,null,null,null,null,null,null,null,null,null,null,null,null,null,null,null,null,null,null,null,null,null,null,250299200001,"生産工学論"]
[null,null,null,null,"エレクトロニクス論",2,null,null,null,null,null,null,null,null,null,null,null,null,null,null,null,null,null,null,null,null,null,null,null,null,null,null,null,null,null,null,null,null,null,null,null,null,null,"※ 評価Pの科目については、GPおよびGPAの計算に含まない。しかしながら、進級・卒業要件の累積単位数には含まれることがある（インターンシップ等）。",null,null,null,250228100002,"エレクトロニクス論"]
[null,null,null,"○","科学技術論",2,null,null,null,null,null,null,null,null,null,null,null,null,null,null,null,null,null,null,null,null,null,null,null,null,null,null,null,null,null,null,null,null,null,null,null,null,null,null,null,null,null,250228100006,"科学技術論"]
[null,null,null,"○","環境工学論",2,null,null,null,null,null,null,null,null,null,null,null,null,null,null,null,null,null,null,null,null,null,null,null,null,null,null,null,null,null,null,null,null,null,null,null,null,null,null,null,null,null,250228100004,"環境工学論"]
[null,null,null,"○","材料科学論",2,null,null,null,null,null,null,null,null,null,null,null,null,null,null,null,null,null,null,null,null,null,null,null,null,null,null,null,null,null,null,null,null,null,null,null,null,null,null,null,null,null,250228100005,"材料科学論"]
[null,null,null,"○","エネルギー工学論",2,null,null,null,null,null,null,null,null,null,null,null,null,null,null,null,null,null,null,null,null,null,null,null,null,null,null,null,null,null,null,null,null,null,null,null,null,null,null,null,null,null,250228100003,"エネルギー工学論"]
["合計",null,null,null,null,null,null,null,null,null,null,null,null,null,null,null,null,null,null,null,null,null,null,null,null,null,null,null,null,null,null,null,null,null,null,null,null,null,null,{"$f":"SUM(H22,J22,L22,N22,P22,R22,T22,V22,X22,Z22,AB22,AD22,AF22,AH22,AJ22,AL22)","v":0},18,{"$f":"SUM(I22,K22,M22,O22,Q22,S22,U22,W22,Y22,AA22,AC22,AE22,AG22,AI22,AK22,AM22)","v":0}]
[]
["情報基礎科目群","化学工学基礎","○","○","化学工学量論",2,"吉田",null,null,null,null,null,null,null,null,null,null,null,null,null,null,null,null,null,null,null,null,null,null,null,null,null,null,null,null,null,null,null,null,null,null,null,null,null,null,null,"化\n学\n工\n学\n基\n礎",251328000009,"化学工学量論"]
[null,null,"○","○","化工熱力学",2,"武井",null,null,null,null,null,null,null,null,null,null,null,null,null,null,null,null,null,null,null,null,null,null,null,null,null,null,null,null,null,null,null,null,null,null,null,null,null,null,null,null,251328000010,"化工熱力学"]
[null,null,"○","○","移動現象基礎",2,"二井",null,null,null,null,null,null,null,null,null,null,null,null,null,null,null,null,null,null,null,null,null,null,null,null,null,null,null,null,null,null,null,null,null,null,null,null,null,null,null,null,250092800011,"移動現象基礎"]
["合計",null,null,null,null,null,null,null,null,null,null,null,null,null,null,null,null,null,null,null,null,null,null,null,null,null,null,null,null,null,null,null,null,null,null,null,null,null,null,{"$f":"SUM(H27,J27,L27,N27,P27,R27,T27,V27,X27,Z27,AB27,AD27,AF27,AH27,AJ27,AL27)","v":0},6,{"$f":"SUM(I27,K27,M27,O27,Q27,S27,U27,W27,Y27,AA27,AC27,AE27,AG27,AI27,AK27,AM27)","v":0}]
[]
["ソフトウェアコア科目群","専門基礎A","○","○","物理化学基礎",2,"武井",null,null,null,null,null,null,null,null,null,null,null,null,null,null,null,null,null,null,null,null,null,null,null,null,null,null,null,null,null,null,null,null,null,null,null,null,null,null,null,"専門基礎A",250092800001,"物理化学基礎"]
[null,null,"○","○","有機化学基礎",2,"岩川*",null,null,null,null,null,null,null,null,null,null,null,null,null,null,null,null,null,null,null,null,null,null,null,null,null,null,null,null,null,null,null,null,null,null,null,null,null,null,null,null,250092800002,"有機化学基礎"]
[null,null,"○","○","無機化学基礎",2,"平田",null,null,null,null,null,null,null,null,null,null,null,null,null,null,null,null,null,null,null,null,null,null,null,null,null,null,null,null,null,null,null,null,null,null,null,null,null,null,null,null,250092800003,"無機化学基礎"]
[null,null,null,"○","量子化学",2,"肥後*",null,null,null,null,null,null,null,null,null,null,null,null,null,null,null,null,null,null,null,null,null,null,null,null,null,null,null,null,null,null,null,null,null,null,null,null,null,null,null,null,251328000007,"量子化学"]
[null,null,null,"○","有機化学",2,"岩川*",null,null,null,null,null,null,null,null,null,null,null,null,null,null,null,null,null,null,null,null,null,null,null,null,null,null,null,null,null,null,null,null,null,null,null,null,null,null,null,null,251328000011,"有機化学"]
[null,null,"○","○","無機化学",2,"鮫島",null,null,null,null,null,null,null,null,null,null,null,null,null,null,null,null,null,null,null,null,null,null,null,null,null,null,null,null,null,null,null,null,null,null,null,null,null,null,null,null,250092800018,{"$f":"E34","v":"無機化学"}]
[null,null,null,"○","分析化学",2,"吉留*",null,null,null,null,null,null,null,null,null,null,null,null,null,null,null,null,null,null,null,null,null,null,null,null,null,null,null,null,null,null,null,null,null,null,null,null,null,null,null,null,250092800014,"分析化学"]
[null,null,"○","○","機器分析基礎",2,"吉田",null,null,null,null,null,null,null,null,null,null,null,null,null,null,null,null,null,null,null,null,null,null,null,null,null,null,null,null,null,null,null,null,null,null,null,null,null,null,null,null,251328000012,"機器分析基礎"]
["合計",null,null,null,null,null,null,null,null,null,null,null,null,null,null,null,null,null,null,null,null,null,null,null,null,null,null,null,null,null,null,null,null,null,null,null,null,null,null,{"$f":"SUM(H37,J37,L37,N37,P37,R37,T37,V37,X37,Z37,AB37,AD37,AF37,AH37,AJ37,AL37)","v":0},12,{"$f":"SUM(I37,K37,M37,O37,Q37,S37,U37,W37,Y37,AA37,AC37,AE37,AG37,AI37,AK37,AM37)","v":0}]
[]
["情報システムコア科目群","専門基礎B","○","○","反応速度論",2,"甲斐",null,null,null,null,null,null,null,null,null,null,null,null,null,null,null,null,null,null,null,null,null,null,null,null,null,null,null,null,null,null,null,null,null,null,null,null,null,null,null,"専門基礎B",250224011001,"反応速度論"]
[null,null,"○","○","化学工学実習",4,"全教員",null,null,null,null,null,null,null,null,null,null,null,null,null,null,null,null,null,null,null,null,null,null,null,null,null,null,null,null,null,null,null,null,null,null,null,null,null,null,null,null,251328000013,"化学工学実習"]
[null,null,"○","○","化学工学実験",4,"全教員",null,null,null,null,null,null,null,null,null,null,null,null,null,null,null,null,null,null,null,null,null,null,null,null,null,null,null,null,null,null,null,null,null,null,null,null,null,null,null,null,250642400100,"化学工学実験","2件以上ヒット","化学工学実験 250642400100\n化学工学実験（環） 251328000014"]
[null,null,"○","○","化学プロセス工学",2,"二井",null,null,null,null,null,null,null,null,null,null,null,null,null,null,null,null,null,null,null,null,null,null,null,null,null,null,null,null,null,null,null,null,null,null,null,null,null,null,null,null,250224000140,"化学プロセス工学"]
[null,null,"○","○","分離工学",2,"二井",null,null,null,null,null,null,null,null,null,null,null,null,null,null,null,null,null,null,null,null,null,null,null,null,null,null,null,null,null,null,null,null,null,null,null,null,null,null,null,null,259432411111,"分離工学"]
[null,null,"○","○","反応工学",2,"甲斐",null,null,null,null,null,null,null,null,null,null,null,null,null,null,null,null,null,null,null,null,null,null,null,null,null,null,null,null,null,null,null,null,null,null,null,null,null,null,null,null,250092800021,"反応工学"]
[null,null,"○","○","無機材料化学Ⅰ",2,"鮫島",null,null,null,null,null,null,null,null,null,null,null,null,null,null,null,null,null,null,null,null,null,null,null,null,null,null,null,null,null,null,null,null,null,null,null,null,null,null,null,null,259652413114,"無機材料化学Ⅰ"]
[null,null,"○","○","技術英語Ⅰ",2,"吉田、五島",null,null,null,null,null,null,null,null,null,null,null,null,null,null,null,null,null,null,null,null,null,null,null,null,null,null,null,null,null,null,null,null,null,null,null,null,null,null,null,null,251328000015,"技術英語Ⅰ","ヒットせず"]
[null,null,"○","○","技術英語Ⅱ",2,"鮫島、下之薗",null,null,null,null,null,null,null,null,null,null,null,null,null,null,null,null,null,null,null,null,null,null,null,null,null,null,null,null,null,null,null,null,null,null,null,null,null,null,null,null,251328000016,"技術英語Ⅱ","ヒットせず"]
[null,null,"○","○","粉体工学",2,"中里",null,null,null,null,null,null,null,null,null,null,null,null,null,null,null,null,null,null,null,null,null,null,null,null,null,null,null,null,null,null,null,null,null,null,null,null,null,null,null,null,251328000023,"粉体工学","ヒットせず"]
["合計",null,null,null,null,null,null,null,null,null,null,null,null,null,null,null,null,null,null,null,null,null,null,null,null,null,null,null,null,null,null,null,null,null,null,null,null,null,null,{"$f":"SUM(H49,J49,L49,N49,P49,R49,T49,V49,X49,Z49,AB49,AD49,AF49,AH49,AJ49,AL49)","v":0},24,{"$f":"SUM(I49,K49,M49,O49,Q49,S49,U49,W49,Y49,AA49,AC49,AE49,AG49,AI49,AK49,AM49)","v":0}]
[]
["情報生体システム科目群","専門","○","○","学外実習",1,"未定",null,null,null,null,null,null,null,null,null,null,null,null,null,null,null,null,null,null,null,null,null,null,null,null,null,null,null,null,null,null,null,null,null,null,null,null,null,null,null,"専門",250092800025,"学外実習"]
[null,null,"○","○","化学工学セミナー",2,"全教員",null,null,null,null,null,null,null,null,null,null,null,null,null,null,null,null,null,null,null,null,null,null,null,null,null,null,null,null,null,null,null,null,null,null,null,null,null,null,null,null,250424000105,"化学工学セミナー"]
[null,null,"○","○","環化工演習",1,"全教員",null,null,null,null,null,null,null,null,null,null,null,null,null,null,null,null,null,null,null,null,null,null,null,null,null,null,null,null,null,null,null,null,null,null,null,null,null,null,null,null,251328000017,"環化工演習"]
[null,null,"○","○","化学工学総論",2,"二井、甲斐、吉田、中里、武井",null,null,null,null,null,null,null,null,null,null,null,null,null,null,null,null,null,null,null,null,null,null,null,null,null,null,null,null,null,null,null,null,null,null,null,null,null,null,null,null,251328000018,"化学工学総論"]
[null,null,"○","○","環境化学工学",2,"大竹*",null,null,null,null,null,null,null,null,null,null,null,null,null,null,null,null,null,null,null,null,null,null,null,null,null,null,null,null,null,null,null,null,null,null,null,null,null,null,null,null,259752414105,"環境化学工学"]
[null,null,"○","○","無機材料化学Ⅱ",2,"平田",null,null,null,null,null,null,null,null,null,null,null,null,null,null,null,null,null,null,null,null,null,null,null,null,null,null,null,null,null,null,null,null,null,null,null,null,null,null,null,null,259652424115,"無機材料化学Ⅱ"]
[null,null,"○","○","化学工学特別研究Ⅰ",2,"全教員",null,null,null,null,null,null,null,null,null,null,null,null,null,null,null,null,null,null,null,null,null,null,null,null,null,null,null,null,null,null,null,null,null,null,null,null,null,null,null,null,251328000019,"化学工学特別研究Ⅰ","ヒットせず"]
[null,null,"○","○","化学工学特別研究Ⅱ",2,"全教員",null,null,null,null,null,null,null,null,null,null,null,null,null,null,null,null,null,null,null,null,null,null,null,null,null,null,null,null,null,null,null,null,null,null,null,null,null,null,null,null,251328000020,"化学工学特別研究Ⅱ","ヒットせず"]
[null,null,"○","○","卒業論文",6,"全教員",null,null,null,null,null,null,null,null,null,null,null,null,null,null,null,null,null,null,null,null,null,null,null,null,null,null,null,null,null,null,null,null,null,null,null,null,null,null,null,null,250092800032,"卒業論文"]
["合計",null,null,null,null,null,null,null,null,null,null,null,null,null,null,null,null,null,null,null,null,null,null,null,null,null,null,null,null,null,null,null,null,null,null,null,null,null,null,{"$f":"SUM(H60,J60,L60,N60,P60,R60,T60,V60,X60,Z60,AB60,AD60,AF60,AH60,AJ60,AL60)","v":0},20,{"$f":"SUM(I60,K60,M60,O60,Q60,S60,U60,W60,Y60,AA60,AC60,AE60,AG60,AI60,AK60,AM60)","v":0}]
[]
["専門教育科目合計",null,null,null,null,null,null,{"$f":"SUM(H22,H27,H37,H49,H60)","v":0},{"$f":"SUM(I22,I27,I37,I49,I60)","v":0},{"$f":"SUM(J22,J27,J37,J49,J60)","v":0},{"$f":"SUM(K22,K27,K37,K49,K60)","v":0},{"$f":"SUM(L22,L27,L37,L49,L60)","v":0},0,0,0,0,0,0,0,0,0,0,{"$f":"SUM(W22,W27,W37,W49,W60)","v":0},0,0,0,0,0,0,0,0,0,0,0,0,0,0,0,0,{"$f":"SUM(H62,J62,L62,N62,P62,R62,T62,V62,X62,Z62,AB62,AD62,AF62,AH62,AJ62,AL62)","v":0},80,{"$f":"SUM(I62,K62,M62,O62,Q62,S62,U62,W62,Y62,AA62,AC62,AE62,AG62,AI62,AK62,AM62)","v":0}]
["修得総単位数",null,null,null,null,null,null,{"$f":"'単位修得状況確認表（共通教育科目等）'!H40+'単位修得状況確認表（専門教育科目）'!H62","v":0},{"$f":"'単位修得状況確認表（共通教育科目等）'!I40+'単位修得状況確認表（専門教育科目）'!I62","v":0},{"$f":"'単位修得状況確認表（共通教育科目等）'!J40+'単位修得状況確認表（専門教育科目）'!J62","v":0},{"$f":"'単位修得状況確認表（共通教育科目等）'!K40+'単位修得状況確認表（専門教育科目）'!K62","v":0},{"$f":"'単位修得状況確認表（共通教育科目等）'!L40+'単位修得状況確認表（専門教育科目）'!L62","v":0},{"$f":"'単位修得状況確認表（共通教育科目等）'!M40+'単位修得状況確認表（専門教育科目）'!M62","v":0},{"$f":"'単位修得状況確認表（共通教育科目等）'!N40+'単位修得状況確認表（専門教育科目）'!N62","v":0},{"$f":"'単位修得状況確認表（共通教育科目等）'!O40+'単位修得状況確認表（専門教育科目）'!O62","v":0},{"$f":"'単位修得状況確認表（共通教育科目等）'!P40+'単位修得状況確認表（専門教育科目）'!P62","v":0},{"$f":"'単位修得状況確認表（共通教育科目等）'!Q40+'単位修得状況確認表（専門教育科目）'!Q62","v":0},{"$f":"'単位修得状況確認表（共通教育科目等）'!R40+'単位修得状況確認表（専門教育科目）'!R62","v":0},{"$f":"'単位修得状況確認表（共通教育科目等）'!S40+'単位修得状況確認表（専門教育科目）'!S62","v":0},{"$f":"'単位修得状況確認表（共通教育科目等）'!T40+'単位修得状況確認表（専門教育科目）'!T62","v":0},{"$f":"'単位修得状況確認表（共通教育科目等）'!U40+'単位修得状況確認表（専門教育科目）'!U62","v":0},{"$f":"'単位修得状況確認表（共通教育科目等）'!V40+'単位修得状況確認表（専門教育科目）'!V62","v":0},{"$f":"'単位修得状況確認表（共通教育科目等）'!W40+'単位修得状況確認表（専門教育科目）'!W62","v":0},{"$f":"'単位修得状況確認表（共通教育科目等）'!X40+'単位修得状況確認表（専門教育科目）'!X62","v":0},{"$f":"'単位修得状況確認表（共通教育科目等）'!Y40+'単位修得状況確認表（専門教育科目）'!Y62","v":0},{"$f":"'単位修得状況確認表（共通教育科目等）'!Z40+'単位修得状況確認表（専門教育科目）'!Z62","v":0},{"$f":"'単位修得状況確認表（共通教育科目等）'!AA40+'単位修得状況確認表（専門教育科目）'!AA62","v":0},{"$f":"'単位修得状況確認表（共通教育科目等）'!AB40+'単位修得状況確認表（専門教育科目）'!AB62","v":0},{"$f":"'単位修得状況確認表（共通教育科目等）'!AC40+'単位修得状況確認表（専門教育科目）'!AC62","v":0},{"$f":"'単位修得状況確認表（共通教育科目等）'!AD40+'単位修得状況確認表（専門教育科目）'!AD62","v":0},{"$f":"'単位修得状況確認表（共通教育科目等）'!AE40+'単位修得状況確認表（専門教育科目）'!AE62","v":0},{"$f":"'単位修得状況確認表（共通教育科目等）'!AF40+'単位修得状況確認表（専門教育科目）'!AF62","v":0},{"$f":"'単位修得状況確認表（共通教育科目等）'!AG40+'単位修得状況確認表（専門教育科目）'!AG62","v":0},{"$f":"'単位修得状況確認表（共通教育科目等）'!AH40+'単位修得状況確認表（専門教育科目）'!AH62","v":0},{"$f":"'単位修得状況確認表（共通教育科目等）'!AI40+'単位修得状況確認表（専門教育科目）'!AI62","v":0},{"$f":"'単位修得状況確認表（共通教育科目等）'!AJ40+'単位修得状況確認表（専門教育科目）'!AJ62","v":0},{"$f":"'単位修得状況確認表（共通教育科目等）'!AK40+'単位修得状況確認表（専門教育科目）'!AK62","v":0},{"$f":"'単位修得状況確認表（共通教育科目等）'!AL40+'単位修得状況確認表（専門教育科目）'!AL62","v":0},{"$f":"'単位修得状況確認表（共通教育科目等）'!AM40+'単位修得状況確認表（専門教育科目）'!AM62","v":0},{"$f":"SUM(H63,J63,L63,N63,P63,R63,T63,V63,X63,Z63,AB63,AD63,AF63,AH63,AJ63,AL63)","v":0},124,{"$f":"SUM(I63,K63,M63,O63,Q63,S63,U63,W63,Y63,AA63,AC63,AE63,AG63,AI63,AK63,AM63)","v":0}]
[null,null,null,null,null,null,null,null,null,null,null,null,null,null,null,null,null,null,null,null,null,null,null,null,null,null,null,null,null,null,null,null,null,null,null,null,null,null,null,"累積GPA",null,{"$f":"IF(AN63-AN65>0,AP63/(AN63-AN65-'単位修得状況確認表（共通教育科目等）'!AN42+AN66+'単位修得状況確認表（共通教育科目等）'!AN43),\"\")","v":""}]
["【専門教育科目】評価Pの単位数",null,null,null,null,null,null,null,null,null,null,null,null,null,null,null,null,null,null,null,null,null,null,null,null,null,null,null,null,null,null,null,null,null,null,null,null,null,null,{"$f":"SUM(H65:AM65)","v":0}]
["【専門教育科目】不合格（評価F）の単位数",null,null,null,null,null,null,null,null,null,null,null,null,null,null,null,null,null,null,null,null,null,null,null,null,null,null,null,null,null,null,null,null,null,null,null,null,null,null,{"$f":"SUM(H66:AM66)","v":0}]

{"sheet":"累積グラフ","index":6,"n_rows":232,"n_cols":8,"rows_kept":232,"cut":false,"hidden":false,"merged":[[65,2,65,3],[65,4,65,5],[3,2,3,3],[3,4,3,5],[3,6,3,7],[34,2,34,3],[34,4,34,5]]}
[]
[null,"共通教育科目（選択科目）"]
[]
[null,null,"a 実践・判断・精神力",null,"b 知力（人文・社会科学）",null,"c 知力（自然科学）"]
[null,null,"取得単位数","累積取得単位数","取得単位数","累積取得単位数","取得単位数","累積取得単位数"]
[null,"1年前期終了時",{"$f":"'単位修得状況確認表（共通教育科目等）'!H7","v":0},{"$f":"SUM(C$6:C6)","v":0},{"$f":"'単位修得状況確認表（共通教育科目等）'!H8","v":0},{"$f":"SUM(E$6:E6)","v":0},{"$f":"'単位修得状況確認表（共通教育科目等）'!H9","v":0},{"$f":"SUM(G$6:G6)","v":0}]
[null,"1年後期終了時",{"$f":"'単位修得状況確認表（共通教育科目等）'!J7","v":0},{"$f":"SUM(C$6:C7)","v":0},{"$f":"'単位修得状況確認表（共通教育科目等）'!J8","v":0},{"$f":"SUM(E$6:E7)","v":0},{"$f":"'単位修得状況確認表（共通教育科目等）'!J9","v":0},{"$f":"SUM(G$6:G7)","v":0}]
[null,"2年前期終了時",{"$f":"'単位修得状況確認表（共通教育科目等）'!L7","v":0},{"$f":"SUM(C$6:C8)","v":0},{"$f":"'単位修得状況確認表（共通教育科目等）'!L8","v":0},{"$f":"SUM(E$6:E8)","v":0},{"$f":"'単位修得状況確認表（共通教育科目等）'!L9","v":0},{"$f":"SUM(G$6:G8)","v":0}]
[null,"2年後期終了時",{"$f":"'単位修得状況確認表（共通教育科目等）'!N7","v":0},{"$f":"SUM(C$6:C9)","v":0},{"$f":"'単位修得状況確認表（共通教育科目等）'!N8","v":0},{"$f":"SUM(E$6:E9)","v":0},{"$f":"'単位修得状況確認表（共通教育科目等）'!N9","v":0},{"$f":"SUM(G$6:G9)","v":0}]
[null,"３年前期終了時",{"$f":"'単位修得状況確認表（共通教育科目等）'!P7","v":0},{"$f":"SUM(C$6:C10)","v":0},{"$f":"'単位修得状況確認表（共通教育科目等）'!P8","v":0},{"$f":"SUM(E$6:E10)","v":0},{"$f":"'単位修得状況確認表（共通教育科目等）'!P9","v":0},{"$f":"SUM(G$6:G10)","v":0}]
[null,"３年後期終了時",{"$f":"'単位修得状況確認表（共通教育科目等）'!R7","v":0},{"$f":"SUM(C$6:C11)","v":0},{"$f":"'単位修得状況確認表（共通教育科目等）'!R8","v":0},{"$f":"SUM(E$6:E11)","v":0},{"$f":"'単位修得状況確認表（共通教育科目等）'!R9","v":0},{"$f":"SUM(G$6:G11)","v":0}]
[null,"4年前期終了時",{"$f":"'単位修得状況確認表（共通教育科目等）'!T7","v":0},{"$f":"SUM(C$6:C12)","v":0},{"$f":"'単位修得状況確認表（共通教育科目等）'!T8","v":0},{"$f":"SUM(E$6:E12)","v":0},{"$f":"'単位修得状況確認表（共通教育科目等）'!T9","v":0},{"$f":"SUM(G$6:G12)","v":0}]
[null,"4年後期終了時",{"$f":"'単位修得状況確認表（共通教育科目等）'!V7","v":0},{"$f":"SUM(C$6:C13)","v":0},{"$f":"'単位修得状況確認表（共通教育科目等）'!V8","v":0},{"$f":"SUM(E$6:E13)","v":0},{"$f":"'単位修得状況確認表（共通教育科目等）'!V9","v":0},{"$f":"SUM(G$6:G13)","v":0}]
[]
[]
[]
[]
[]
[]
[]
[]
[]
[]
[]
[]
[]
[]
[]
[]
[]
[]
[]
[null,"共通教育科目（選択必修科目）"]
[]
[null,null,"d 身体力",null,"e コミュニケーション力"]
[null,null,"取得単位数","累積取得単位数","取得単位数","累積取得単位数"]
[null,"1年前期終了時",{"$f":"SUM('単位修得状況確認表（共通教育科目等）'!H12:H13)","v":0},{"$f":"SUM(C$37:C37)","v":0},{"$f":"SUM('単位修得状況確認表（共通教育科目等）'!H14:H16)","v":0},{"$f":"SUM(E$37:E37)","v":0}]
[null,"1年後期終了時",{"$f":"SUM('単位修得状況確認表（共通教育科目等）'!J12:J13)","v":0},{"$f":"SUM(C$37:C38)","v":0},{"$f":"SUM('単位修得状況確認表（共通教育科目等）'!J14:J16)","v":0},{"$f":"SUM(E$37:E38)","v":0}]
[null,"2年前期終了時",{"$f":"SUM('単位修得状況確認表（共通教育科目等）'!L12:L13)","v":0},{"$f":"SUM(C$37:C39)","v":0},{"$f":"SUM('単位修得状況確認表（共通教育科目等）'!L14:L16)","v":0},{"$f":"SUM(E$37:E39)","v":0}]
[null,"2年後期終了時",{"$f":"SUM('単位修得状況確認表（共通教育科目等）'!N12:N13)","v":0},{"$f":"SUM(C$37:C40)","v":0},{"$f":"SUM('単位修得状況確認表（共通教育科目等）'!N14:N16)","v":0},{"$f":"SUM(E$37:E40)","v":0}]
[null,"３年前期終了時",{"$f":"SUM('単位修得状況確認表（共通教育科目等）'!P12:P13)","v":0},{"$f":"SUM(C$37:C41)","v":0},{"$f":"SUM('単位修得状況確認表（共通教育科目等）'!P14:P16)","v":0},{"$f":"SUM(E$37:E41)","v":0}]
[null,"３年後期終了時",{"$f":"SUM('単位修得状況確認表（共通教育科目等）'!R12:R13)","v":0},{"$f":"SUM(C$37:C42)","v":0},{"$f":"SUM('単位修得状況確認表（共通教育科目等）'!R14:R16)","v":0},{"$f":"SUM(E$37:E42)","v":0}]
[null,"4年前期終了時",{"$f":"SUM('単位修得状況確認表（共通教育科目等）'!T12:T13)","v":0},{"$f":"SUM(C$37:C43)","v":0},{"$f":"SUM('単位修得状況確認表（共通教育科目等）'!T14:T16)","v":0},{"$f":"SUM(E$37:E43)","v":0}]
[null,"4年後期終了時",{"$f":"SUM('単位修得状況確認表（共通教育科目等）'!V12:V13)","v":0},{"$f":"SUM(C$37:C44)","v":0},{"$f":"SUM('単位修得状況確認表（共通教育科目等）'!V14:V16)","v":0},{"$f":"SUM(E$37:E44)","v":0}]
[]
[]
[]
[]
[]
[]
[]
[]
[]
[]
[]
[]
[]
[]
[]
[]
[]
[]
[]
[null,"基礎教育科目"]
[]
[null,null,"単独必修科目",null,"選択必修科目"]
[null,null,"取得単位数","累積取得単位数","取得単位数","累積取得単位数"]
[null,"1年前期終了時",{"$f":"'単位修得状況確認表（共通教育科目等）'!H31","v":0},{"$f":"SUM(C$68:C68)","v":0},{"$f":"'単位修得状況確認表（共通教育科目等）'!H37","v":0},{"$f":"SUM(E$68:E68)","v":0}]
[null,"1年後期終了時",{"$f":"'単位修得状況確認表（共通教育科目等）'!J31","v":0},{"$f":"SUM(C$68:C69)","v":0},{"$f":"'単位修得状況確認表（共通教育科目等）'!J37","v":0},{"$f":"SUM(E$68:E69)","v":0}]
[null,"2年前期終了時",{"$f":"'単位修得状況確認表（共通教育科目等）'!L31","v":0},{"$f":"SUM(C$68:C70)","v":0},{"$f":"'単位修得状況確認表（共通教育科目等）'!L37","v":0},{"$f":"SUM(E$68:E70)","v":0}]
[null,"2年後期終了時",{"$f":"'単位修得状況確認表（共通教育科目等）'!N31","v":0},{"$f":"SUM(C$68:C71)","v":0},{"$f":"'単位修得状況確認表（共通教育科目等）'!N37","v":0},{"$f":"SUM(E$68:E71)","v":0}]
[null,"３年前期終了時",{"$f":"'単位修得状況確認表（共通教育科目等）'!P31","v":0},{"$f":"SUM(C$68:C72)","v":0},{"$f":"'単位修得状況確認表（共通教育科目等）'!P37","v":0},{"$f":"SUM(E$68:E72)","v":0}]
[null,"３年後期終了時",{"$f":"'単位修得状況確認表（共通教育科目等）'!R31","v":0},{"$f":"SUM(C$68:C73)","v":0},{"$f":"'単位修得状況確認表（共通教育科目等）'!R37","v":0},{"$f":"SUM(E$68:E73)","v":0}]
[null,"4年前期終了時",{"$f":"'単位修得状況確認表（共通教育科目等）'!T31","v":0},{"$f":"SUM(C$68:C74)","v":0},{"$f":"'単位修得状況確認表（共通教育科目等）'!T37","v":0},{"$f":"SUM(E$68:E74)","v":0}]
[null,"4年後期終了時",{"$f":"'単位修得状況確認表（共通教育科目等）'!V31","v":0},{"$f":"SUM(C$68:C75)","v":0},{"$f":"'単位修得状況確認表（共通教育科目等）'!V37","v":0},{"$f":"SUM(E$68:E75)","v":0}]
[]
[]
[]
[]
[]
[]
[]
[]
[]
[]
[]
[]
[]
[]
[]
[]
[]
[]
[]
[]
[]
[null,"工学基礎"]
[]
[null,null,"取得単位数","累積取得単位数"]
[null,"1年前期終了時",{"$f":"'単位修得状況確認表（専門教育科目）'!H22","v":0},{"$f":"SUM(C$100:C100)","v":0}]
[null,"1年後期終了時",{"$f":"'単位修得状況確認表（専門教育科目）'!J22","v":0},{"$f":"SUM(C$100:C101)","v":0}]
[null,"2年前期終了時",{"$f":"'単位修得状況確認表（専門教育科目）'!L22","v":0},{"$f":"SUM(C$100:C102)","v":0}]
[null,"2年後期終了時",{"$f":"'単位修得状況確認表（専門教育科目）'!N22","v":0},{"$f":"SUM(C$100:C103)","v":0}]
[null,"３年前期終了時",{"$f":"'単位修得状況確認表（専門教育科目）'!P22","v":0},{"$f":"SUM(C$100:C104)","v":0}]
[null,"３年後期終了時",{"$f":"'単位修得状況確認表（専門教育科目）'!R22","v":0},{"$f":"SUM(C$100:C105)","v":0}]
[null,"4年前期終了時",{"$f":"'単位修得状況確認表（専門教育科目）'!T22","v":0},{"$f":"SUM(C$100:C106)","v":0}]
[null,"4年後期終了時",{"$f":"'単位修得状況確認表（専門教育科目）'!V22","v":0},{"$f":"SUM(C$100:C107)","v":0}]
[]
[]
[]
[]
[]
[]
[]
[null,"化学工学基礎"]
[]
[null,null,"取得単位数","累積取得単位数"]
[null,"1年前期終了時",{"$f":"'単位修得状況確認表（専門教育科目）'!H27","v":0},{"$f":"SUM(C$118:C118)","v":0}]
[null,"1年後期終了時",{"$f":"'単位修得状況確認表（専門教育科目）'!J27","v":0},{"$f":"SUM(C$118:C119)","v":0}]
[null,"2年前期終了時",{"$f":"'単位修得状況確認表（専門教育科目）'!L27","v":0},{"$f":"SUM(C$118:C120)","v":0}]
[null,"2年後期終了時",{"$f":"'単位修得状況確認表（専門教育科目）'!N27","v":0},{"$f":"SUM(C$118:C121)","v":0}]
[null,"３年前期終了時",{"$f":"'単位修得状況確認表（専門教育科目）'!P27","v":0},{"$f":"SUM(C$118:C122)","v":0}]
[null,"３年後期終了時",{"$f":"'単位修得状況確認表（専門教育科目）'!R27","v":0},{"$f":"SUM(C$118:C123)","v":0}]
[null,"4年前期終了時",{"$f":"'単位修得状況確認表（専門教育科目）'!T27","v":0},{"$f":"SUM(C$118:C124)","v":0}]
[null,"4年後期終了時",{"$f":"'単位修得状況確認表（専門教育科目）'!V27","v":0},{"$f":"SUM(C$118:C125)","v":0}]
[]
[]
[]
[]
[]
[]
[]
[null,"専門基礎A"]
[]
[null,null,"取得単位数","累積取得単位数"]
[null,"1年前期終了時",{"$f":"'単位修得状況確認表（専門教育科目）'!H37","v":0},{"$f":"SUM(C$136:C136)","v":0}]
[null,"1年後期終了時",{"$f":"'単位修得状況確認表（専門教育科目）'!J37","v":0},{"$f":"SUM(C$136:C137)","v":0}]
[null,"2年前期終了時",{"$f":"'単位修得状況確認表（専門教育科目）'!L37","v":0},{"$f":"SUM(C$136:C138)","v":0}]
[null,"2年後期終了時",{"$f":"'単位修得状況確認表（専門教育科目）'!N37","v":0},{"$f":"SUM(C$136:C139)","v":0}]
[null,"３年前期終了時",{"$f":"'単位修得状況確認表（専門教育科目）'!P37","v":0},{"$f":"SUM(C$136:C140)","v":0}]
[null,"３年後期終了時",{"$f":"'単位修得状況確認表（専門教育科目）'!R37","v":0},{"$f":"SUM(C$136:C141)","v":0}]
[null,"4年前期終了時",{"$f":"'単位修得状況確認表（専門教育科目）'!T37","v":0},{"$f":"SUM(C$136:C142)","v":0}]
[null,"4年後期終了時",{"$f":"'単位修得状況確認表（専門教育科目）'!V37","v":0},{"$f":"SUM(C$136:C143)","v":0}]
[]
[]
[]
[]
[]
[]
[]
[null,"専門基礎B"]
[]
[null,null,"取得単位数","累積取得単位数"]
[null,"1年前期終了時",{"$f":"'単位修得状況確認表（専門教育科目）'!H49","v":0},{"$f":"SUM(C$154:C154)","v":0}]
[null,"1年後期終了時",{"$f":"'単位修得状況確認表（専門教育科目）'!J49","v":0},{"$f":"SUM(C$154:C155)","v":0}]
[null,"2年前期終了時",{"$f":"'単位修得状況確認表（専門教育科目）'!L49","v":0},{"$f":"SUM(C$154:C156)","v":0}]
[null,"2年後期終了時",{"$f":"'単位修得状況確認表（専門教育科目）'!N49","v":0},{"$f":"SUM(C$154:C157)","v":0}]
[null,"３年前期終了時",{"$f":"'単位修得状況確認表（専門教育科目）'!P49","v":0},{"$f":"SUM(C$154:C158)","v":0}]
[null,"３年後期終了時",{"$f":"'単位修得状況確認表（専門教育科目）'!R49","v":0},{"$f":"SUM(C$154:C159)","v":0}]
[null,"4年前期終了時",{"$f":"'単位修得状況確認表（専門教育科目）'!T49","v":0},{"$f":"SUM(C$154:C160)","v":0}]
[null,"4年後期終了時",{"$f":"'単位修得状況確認表（専門教育科目）'!V49","v":0},{"$f":"SUM(C$154:C161)","v":0}]
[]
[]
[]
[]
[]
[]
[]
[null,"専門"]
[]
[null,null,"取得単位数","累積取得単位数"]
[null,"1年前期終了時",{"$f":"'単位修得状況確認表（専門教育科目）'!H60","v":0},{"$f":"SUM(C$172:C172)","v":0}]
[null,"1年後期終了時",{"$f":"'単位修得状況確認表（専門教育科目）'!J60","v":0},{"$f":"SUM(C$172:C173)","v":0}]
[null,"2年前期終了時",{"$f":"'単位修得状況確認表（専門教育科目）'!L60","v":0},{"$f":"SUM(C$172:C174)","v":0}]
[null,"2年後期終了時",{"$f":"'単位修得状況確認表（専門教育科目）'!N60","v":0},{"$f":"SUM(C$172:C175)","v":0}]
[null,"３年前期終了時",{"$f":"'単位修得状況確認表（専門教育科目）'!P60","v":0},{"$f":"SUM(C$172:C176)","v":0}]
[null,"３年後期終了時",{"$f":"'単位修得状況確認表（専門教育科目）'!R60","v":0},{"$f":"SUM(C$172:C177)","v":0}]
[null,"4年前期終了時",{"$f":"'単位修得状況確認表（専門教育科目）'!T60","v":0},{"$f":"SUM(C$172:C178)","v":0}]
[null,"4年後期終了時",{"$f":"'単位修得状況確認表（専門教育科目）'!V60","v":0},{"$f":"SUM(C$172:C179)","v":0}]
[]
[]
[]
[]
[]
[]
[]
[]
[]
[]
[null,"累積単位数"]
[]
[null,null,"取得単位数","累積取得単位数"]
[null,"1年前期終了時",{"$f":"SUM(C6,E6,G6,C37,E37,C68,E68,C100,C118,C136,C154,C172)","v":0},{"$f":"SUM(C$193:C193)","v":0}]
[null,"1年後期終了時",{"$f":"SUM(C7,E7,G7,C38,E38,C69,E69,C101,C119,C137,C155,C173)","v":0},{"$f":"SUM(C$193:C194)","v":0}]
[null,"2年前期終了時",{"$f":"SUM(C8,E8,G8,C39,E39,C70,E70,C102,C120,C138,C156,C174)","v":0},{"$f":"SUM(C$193:C195)","v":0}]
[null,"2年後期終了時",0,{"$f":"SUM(C$193:C196)","v":0}]
[null,"３年前期終了時",0,{"$f":"SUM(C$193:C197)","v":0}]
[null,"３年後期終了時",0,{"$f":"SUM(C$193:C198)","v":0}]
[null,"4年前期終了時",0,{"$f":"SUM(C$193:C199)","v":0}]
[null,"4年後期終了時",0,{"$f":"SUM(C$193:C200)","v":0}]
[]
[]
[]
[]
[]
[]
[]
[]
[]
[]
[]
[]
[]
[]
[]
[]
[]
[]
[]
[]
[]
[null,"GPA"]
[]
[null,null,"累積GP","累積GPA","GPA累積単位数","累積P","累積F"]
[null,"1年前期終了時",{"$f":"'単位修得状況確認表（共通教育科目等）'!I18+'単位修得状況確認表（共通教育科目等）'!I38+'単位修得状況確認表（専門教育科目）'!I22+'単位修得状況確認表（専門教育科目）'!I27+'単位修得状況確認表（専門教育科目）'!I37+'単位修得状況確認表（専門教育科目）'!I49+'単位修得状況確認表（専門教育科目）'!I60","v":0},{"$f":"IF(E225=0,\"\",C225/E225)","v":""},{"$f":"D193-F225+G225","v":0},{"$f":"SUM('単位修得状況確認表（共通教育科目等）'!H42,'単位修得状況確認表（専門教育科目）'!H65)","v":0},{"$f":"SUM('単位修得状況確認表（共通教育科目等）'!H43,'単位修得状況確認表（専門教育科目）'!H66)","v":0}]
[null,"1年後期終了時",{"$f":"C225+'単位修得状況確認表（共通教育科目等）'!K18+'単位修得状況確認表（共通教育科目等）'!K38+'単位修得状況確認表（専門教育科目）'!K22+'単位修得状況確認表（専門教育科目）'!K27+'単位修得状況確認表（専門教育科目）'!K37+'単位修得状況確認表（専門教育科目）'!K49+'単位修得状況確認表（専門教育科目）'!K60","v":0},"",{"$f":"D194-F226+G226","v":0},{"$f":"SUM(F225,'単位修得状況確認表（共通教育科目等）'!J42,'単位修得状況確認表（専門教育科目）'!J65)","v":0},{"$f":"SUM(G225,'単位修得状況確認表（共通教育科目等）'!J43,'単位修得状況確認表（専門教育科目）'!J66)","v":0}]
[null,"2年前期終了時",{"$f":"C226+'単位修得状況確認表（共通教育科目等）'!M18+'単位修得状況確認表（共通教育科目等）'!M38+'単位修得状況確認表（専門教育科目）'!M22+'単位修得状況確認表（専門教育科目）'!M27+'単位修得状況確認表（専門教育科目）'!M37+'単位修得状況確認表（専門教育科目）'!M49+'単位修得状況確認表（専門教育科目）'!M60","v":0},"",{"$f":"D195-F227+G227","v":0},{"$f":"SUM(F226,'単位修得状況確認表（共通教育科目等）'!L42,'単位修得状況確認表（専門教育科目）'!L65)","v":0},{"$f":"SUM(G226,'単位修得状況確認表（共通教育科目等）'!L43,'単位修得状況確認表（専門教育科目）'!L66)","v":0}]
[null,"2年後期終了時",{"$f":"C227+'単位修得状況確認表（共通教育科目等）'!O18+'単位修得状況確認表（共通教育科目等）'!O38+'単位修得状況確認表（専門教育科目）'!O22+'単位修得状況確認表（専門教育科目）'!O27+'単位修得状況確認表（専門教育科目）'!O37+'単位修得状況確認表（専門教育科目）'!O49+'単位修得状況確認表（専門教育科目）'!O60","v":0},"",0,{"$f":"SUM(F227,'単位修得状況確認表（共通教育科目等）'!N42,'単位修得状況確認表（専門教育科目）'!N65)","v":0},{"$f":"SUM(G227,'単位修得状況確認表（共通教育科目等）'!N43,'単位修得状況確認表（専門教育科目）'!N66)","v":0}]
[null,"３年前期終了時",{"$f":"C228+'単位修得状況確認表（共通教育科目等）'!Q18+'単位修得状況確認表（共通教育科目等）'!Q38+'単位修得状況確認表（専門教育科目）'!Q22+'単位修得状況確認表（専門教育科目）'!Q27+'単位修得状況確認表（専門教育科目）'!Q37+'単位修得状況確認表（専門教育科目）'!Q49+'単位修得状況確認表（専門教育科目）'!Q60","v":0},"",0,{"$f":"SUM(F228,'単位修得状況確認表（共通教育科目等）'!P42,'単位修得状況確認表（専門教育科目）'!P65)","v":0},{"$f":"SUM(G228,'単位修得状況確認表（共通教育科目等）'!P43,'単位修得状況確認表（専門教育科目）'!P66)","v":0}]
[null,"３年後期終了時",{"$f":"C229+'単位修得状況確認表（共通教育科目等）'!S18+'単位修得状況確認表（共通教育科目等）'!S38+'単位修得状況確認表（専門教育科目）'!S22+'単位修得状況確認表（専門教育科目）'!S27+'単位修得状況確認表（専門教育科目）'!S37+'単位修得状況確認表（専門教育科目）'!S49+'単位修得状況確認表（専門教育科目）'!S60","v":0},"",0,{"$f":"SUM(F229,'単位修得状況確認表（共通教育科目等）'!R42,'単位修得状況確認表（専門教育科目）'!R65)","v":0},{"$f":"SUM(G229,'単位修得状況確認表（共通教育科目等）'!R43,'単位修得状況確認表（専門教育科目）'!R66)","v":0}]
[null,"4年前期終了時",{"$f":"C230+'単位修得状況確認表（共通教育科目等）'!T18+'単位修得状況確認表（共通教育科目等）'!T38+'単位修得状況確認表（専門教育科目）'!T22+'単位修得状況確認表（専門教育科目）'!T27+'単位修得状況確認表（専門教育科目）'!T37+'単位修得状況確認表（専門教育科目）'!T49+'単位修得状況確認表（専門教育科目）'!T60","v":0},"",0,{"$f":"SUM(F230,'単位修得状況確認表（共通教育科目等）'!T42,'単位修得状況確認表（専門教育科目）'!T65)","v":0},{"$f":"SUM(G230,'単位修得状況確認表（共通教育科目等）'!T43,'単位修得状況確認表（専門教育科目）'!T66)","v":0}]
[null,"4年後期終了時",{"$f":"C231+'単位修得状況確認表（共通教育科目等）'!W18+'単位修得状況確認表（共通教育科目等）'!W38+'単位修得状況確認表（専門教育科目）'!W22+'単位修得状況確認表（専門教育科目）'!W27+'単位修得状況確認表（専門教育科目）'!W37+'単位修得状況確認表（専門教育科目）'!W49+'単位修得状況確認表（専門教育科目）'!W60","v":0},"",0,{"$f":"SUM(F231,'単位修得状況確認表（共通教育科目等）'!V42,'単位修得状況確認表（専門教育科目）'!V65)","v":0},{"$f":"SUM(G231,'単位修得状況確認表（共通教育科目等）'!V43,'単位修得状況確認表（専門教育科目）'!V66)","v":0}]